bitfinex/quotes_SOLUSD_20240624
["timestamp","ask_amount","ask_price","bid_price","bid_amount"]
[1719193720930,7.8556,127.3,127.25,7.8584]
[1719193721260,7.8549,127.31,127.26,7.8574]
[1719193721426,7.8547,127.32,127.26,7.8573]
[1719193721735,7.8547,127.32,127.27,7.8571]
[1719193721937,7.855,127.31,127.26,7.8576]
[1719193722151,5.1068,127.33,127.25,7.8583]
[1719193722152,7.8555,127.3,127.25,7.8583]
[1719193722453,7.855,127.31,127.26,7.8579]
[1719193722830,7.8578,127.27,127.22,7.8599]
[1719193723555,45.17,127.32,127.2,41.8573]
[1719193723758,0.17,127.31,127.21,20.0]
[1719193723961,7.8576,127.27,127.22,7.86]
[1719193724534,7.8585,127.25,127.17,6.4125]
[1719193724736,7.8599,127.23,127.16,16.5103]
[1719193724959,5.1068,127.25,127.18,7.8627]
[1719193725139,7.8599,127.23,127.16,16.5103]
[1719193725334,12.9657,127.25,127.19,7.8622]
[1719193725642,12.9657,127.25,127.2,7.8615]
[1719193726859,7.8591,127.24,127.19,7.862]
[1719193727257,7.8599,127.23,127.18,7.8628]
[1719193727633,7.8594,127.24,127.18,7.8628]
[1719193728249,7.8594,127.24,127.16,36.1691]
[1719193728562,7.8594,127.24,127.18,7.8625]
[1719193728764,7.8601,127.23,127.17,45.0]
[1719193728943,7.8605,127.22,127.17,52.8632]
[1719193729143,7.86,127.23,127.18,7.8626]
[1719193729358,7.8593,127.24,127.19,7.8621]
[1719193729965,7.8593,127.24,127.18,7.8625]
[1719193730860,5.1068,127.25,127.17,52.8632]
[1719193731067,7.8608,127.22,127.17,52.8632]
[1719193731241,0.17,127.24,127.14,6.3148]
[1719193731442,7.8613,127.21,127.16,7.864]
[1719193731850,0.34,127.24,127.14,6.3148]
[1719193732164,7.8619,127.2,127.15,7.8643]
[1719193732363,0.34,127.24,127.14,6.3148]
[1719193732543,7.8613,127.21,127.16,7.864]
[1719193732865,7.8605,127.22,127.17,7.8633]
[1719193733445,7.8599,127.23,127.18,7.8627]
[1719193733846,7.8605,127.22,127.17,7.8633]
[1719193734048,7.8613,127.21,127.16,7.8638]
[1719193734246,7.8606,127.22,127.17,7.8634]
[1719193735471,7.8606,127.22,127.18,7.8628]
[1719193735650,7.8606,127.22,127.17,7.8633]
[1719193736469,7.86,127.23,127.18,7.8628]
[1719193739482,8.0294,127.24,127.19,7.8621]
[1719193739648,7.8575,127.27,127.22,7.86]
[1719193739848,5.9255,127.29,127.19,19.6542]
[1719193740169,5.9255,127.29,127.23,7.8597]
[1719193740569,5.9255,127.29,127.2,19.9928]
[1719193740867,5.9255,127.29,127.21,45.0]
[1719193741050,5.9255,127.29,127.24,7.8591]
[1719193741256,276.78,127.38,127.22,0.17]
[1719193741257,5.9255,127.33,127.22,0.17]
[1719193741464,5.9255,127.33,127.25,19.6449]
[1719193741709,5.9255,127.33,127.27,7.8569]
[1719193742051,5.9255,127.33,127.28,7.8565]
[1719193742248,1.7225473,127.35,127.26,19.6432]
[1719193742553,1.7225473,127.35,127.28,19.6415]
[1719193742870,1.7225473,127.35,127.29,7.8558]
[1719193743170,6.24752192,127.36,127.3,7.8554]
[1719193743381,5.9255,127.37,127.3,7.8554]
[1719193743875,5.9255,127.37,127.3,19.6384]
[1719193744083,5.9255,127.37,127.3,7.8551]
[1719193744678,5.9255,127.37,127.31,7.8548]
[1719193746682,7.8521,127.36,127.31,7.8548]
[1719193747384,7.8521,127.36,127.3,7.8552]
[1719193747675,7.8521,127.36,127.31,7.8546]
[1719193749220,7.8507,127.38,127.33,7.8535]
[1719193749848,7.8507,127.38,127.32,45.0]
[1719193750055,7.8513,127.37,127.32,52.8541]
[1719193751292,5.1068,127.43,127.28,16.1581]
[1719193751485,7.8539,127.33,127.28,24.0142]
[1719193751662,7.8542,127.32,127.27,13.9341]
[1719193751977,7.8537,127.33,127.28,7.8565]
[1719193752158,7.854,127.33,127.28,7.8563]
[1719193752357,7.8544,127.32,127.27,13.9343]
[1719193752659,5.1068,127.36,127.27,6.0771]
[1719193752976,7.8526,127.35,127.3,7.8551]
[1719193753171,5.1068,127.36,127.27,6.0771]
[1719193753374,0.8187,127.35,127.25,16.3709]
[1719193753572,7.8532,127.34,127.29,7.8557]
[1719193754171,8.6712,127.35,127.3,7.8553]
[1719193754493,5.1068,127.36,127.32,7.8538]
[1719193754897,5.9255,127.39,127.29,19.6399]
[1719193755089,7.8514,127.37,127.32,7.854]
[1719193755464,5.1068,127.41,127.3,170.9975]
[1719193755673,6.7443803,127.45,127.32,116.1089]
[1719193755974,7.848,127.43,127.38,7.8501]
[1719193756311,7.848,127.43,127.33,65.34]
[1719193756312,7.8481,127.42,127.37,7.8508]
[1719193757174,7.8477,127.43,127.37,7.8508]
[1719193757789,7.8477,127.43,127.38,7.8503]
[1719193758902,6.7443803,127.45,127.36,0.17]
[1719193759193,6.7443803,127.45,127.38,19.625]
[1719193759400,14.5908803,127.45,127.4,7.849]
[1719193759609,0.8188803,127.45,127.4,7.849]
[1719193759895,0.8188803,127.45,127.41,7.8481]
[1719193760205,0.8188803,127.45,127.42,45.0]
[1719193760818,0.8188803,127.45,127.42,52.8476]
[1719193761895,0.8188803,127.45,127.43,7.8474]
[1719193762218,0.8188803,127.45,127.44,45.0]
[1719193762594,0.8188803,127.45,127.43,52.8474]
[1719193763292,0.8188803,127.45,127.36,19.6278]
[1719193763593,7.8477,127.43,127.38,7.8501]
[1719193763799,0.8188803,127.45,127.35,16.5728]
[1719193764527,0.8188803,127.45,127.35,36.2036]
[1719193764710,7.8474,127.43,127.38,7.8499]
[1719193765222,0.8188803,127.45,127.39,7.8498]
[1719193765412,8.6652803,127.45,127.39,7.8496]
[1719193765804,8.6652803,127.45,127.4,7.8491]
[1719193766332,7.8468,127.44,127.39,7.8496]
[1719193767733,7.8487,127.41,127.36,7.8515]
[1719193767899,7.8482,127.42,127.37,7.851]
[1719193768099,0.8188803,127.45,127.38,7.8504]
[1719193768100,7.8476,127.43,127.38,7.8504]
[1719193768309,7.8471,127.44,127.39,7.8498]
[1719193769139,0.8188803,127.45,127.4,7.8492]
[1719193769351,7.8468,127.44,127.39,7.8495]
[1719193769807,7.8474,127.43,127.39,7.8495]
[1719193770236,7.8469,127.44,127.39,7.8495]
[1719193770832,8.6652803,127.45,127.4,7.8492]
[1719193771837,7.8468,127.44,127.41,45.0]
[1719193772023,8.6652803,127.45,127.41,45.0]
[1719193773235,7.8468,127.44,127.41,45.0]
[1719193773439,8.6653803,127.45,127.41,45.0]
[1719193774118,0.8188803,127.45,127.41,45.0]
[1719193774313,0.8188803,127.45,127.41,7.8483]
[1719193774501,0.8188803,127.45,127.42,52.848]
[1719193774701,0.8188803,127.45,127.42,7.848]
[1719193774902,0.8188803,127.45,127.43,45.0]
[1719193776240,0.8188803,127.45,127.44,8.0168]
[1719193776536,0.8188803,127.45,127.44,53.1868]
[1719193779222,0.8188803,127.45,127.44,73.1868]
[1719193782536,0.8188803,127.45,127.44,28.0168]
[1719193783417,0.8188803,127.45,127.42,23.9428]
[1719193783611,0.8188803,127.45,127.42,7.8476]
[1719193783810,0.8188803,127.45,127.43,7.8473]
[1719193784350,0.8188803,127.45,127.44,7.8468]
[1719193785438,0.8188803,127.45,127.44,8.0168]
[1719193785735,0.8188803,127.45,127.44,53.1868]
[1719193786425,0.8188803,127.45,127.44,52.8468]
[1719193788521,0.8188803,127.45,127.42,7.848]
[1719193788729,0.8188803,127.45,127.43,7.8473]
[1719193788931,7.8536,127.34,127.25,106.599]
[1719193789111,18.65,127.36,127.25,6.599]
[1719193789317,18.65,127.36,127.23,16.1081]
[1719193789318,7.8555,127.3,127.23,16.1081]
[1719193789619,7.8568,127.28,127.2,6.599]
[1719193789855,18.65,127.27,127.17,35.7656]
[1719193790148,7.8579,127.26,127.17,35.7656]
[1719193790349,7.8579,127.26,127.2,7.8615]
[1719193790573,18.65,127.27,127.17,16.1081]
[1719193790737,0.17,127.25,127.14,19.6628]
[1719193791052,22.02,127.29,127.17,7.8634]
[1719193791053,7.8599,127.23,127.17,7.8634]
[1719193791268,7.8605,127.22,127.16,7.8639]
[1719193792831,18.65,127.27,127.15,100.0]
[1719193793043,0.17,127.26,127.15,100.0]
[1719193793244,0.17,127.26,127.18,7.8624]
[1719193793641,18.65,127.27,127.2,7.8615]
[1719193793850,28.0435021,127.32,127.21,45.0]
[1719193794059,28.043502,127.31,127.21,45.0]
[1719193794455,28.043502,127.31,127.2,45.0]
[1719193794655,28.043502,127.31,127.2,52.8615]
[1719193795261,45.0,127.3,127.2,52.8615]
[1719193795462,0.17,127.29,127.2,45.0]
[1719193795959,7.8585,127.25,127.2,52.8615]
[1719193796154,0.17,127.29,127.2,45.0]
[1719193796155,7.8568,127.28,127.2,45.0]
[1719193796356,0.17,127.29,127.19,45.17]
[1719193796564,0.17,127.29,127.2,0.17]
[1719193796747,7.8579,127.26,127.21,7.8609]
[1719193796950,7.8579,127.26,127.2,8.0313]
[1719193797261,7.8586,127.25,127.21,45.0]
[1719193797841,0.17,127.29,127.21,45.0]
[1719193798055,7.8602,127.23,127.17,7.8633]
[1719193798261,7.8602,127.23,127.18,45.0]
[1719193798562,45.34,127.3,127.18,45.17]
[1719193798881,7.8598,127.23,127.18,52.8624]
[1719193799187,7.8592,127.24,127.19,7.8622]
[1719193799348,7.8592,127.24,127.2,45.0]
[1719193799786,7.8587,127.25,127.2,52.8616]
[1719193800276,7.8587,127.25,127.2,52.8613]
[1719193800450,7.8595,127.24,127.2,45.0]
[1719193800651,45.34,127.3,127.2,52.8616]
[1719193800866,7.859,127.25,127.2,45.0]
[1719193801669,45.34,127.3,127.2,45.0]
[1719193801986,7.8592,127.24,127.19,7.8616]
[1719193802553,7.8587,127.25,127.2,7.8616]
[1719193802755,7.8587,127.25,127.21,45.0]
[1719193803056,7.8574,127.27,127.22,7.8599]
[1719193803251,7.8573,127.27,127.23,45.0]
[1719193803481,21.85,127.32,127.23,45.0]
[1719193803672,21.85,127.32,127.21,8.0308]
[1719193803864,7.8579,127.26,127.22,45.0]
[1719193804987,21.85,127.32,127.22,52.8598]
[1719193805278,21.85,127.32,127.23,0.34]
[1719193805469,6.29095058,127.34,127.24,7.8588]
[1719193805670,10.0,127.37,127.23,8.1994]
[1719193805871,21.85,127.34,127.24,45.0]
[1719193806171,31.491496,127.36,127.25,7.8584]
[1719193806358,31.491496,127.36,127.26,45.0]
[1719193806559,21.85,127.34,127.23,8.1992]
[1719193806870,21.85,127.34,127.24,52.859]
[1719193807179,0.17,127.33,127.24,52.859]
[1719193807581,7.8562,127.29,127.24,52.859]
[1719193808259,7.8562,127.29,127.25,0.17]
[1719193809304,7.8567,127.28,127.25,0.17]
[1719193809671,0.17,127.33,127.24,45.0]
[1719193809861,0.17,127.33,127.19,21.7834]
[1719193809862,21.85,127.3,127.19,21.7834]
[1719193810066,7.8601,127.23,127.19,21.7834]
[1719193811083,7.8588,127.25,127.2,7.8616]
[1719193811286,7.8595,127.24,127.19,29.6454]
[1719193811462,7.8587,127.25,127.2,7.8614]
[1719193811983,7.8592,127.24,127.19,29.6453]
[1719193812186,21.85,127.3,127.15,22.5608]
[1719193812481,7.8617,127.2,127.15,22.5608]
[1719193812684,7.8612,127.21,127.16,7.8637]
[1719193812869,7.8606,127.22,127.17,7.8633]
[1719193813067,7.8615,127.21,127.16,7.8637]
[1719193813269,0.34,127.29,127.15,22.5608]
[1719193813567,7.8611,127.21,127.15,22.5608]
[1719193813767,7.8616,127.2,127.15,30.4252]
[1719193814096,7.8613,127.21,127.16,7.864]
[1719193814270,7.8607,127.22,127.17,7.8633]
[1719193814469,7.8616,127.2,127.15,30.4252]
[1719193814683,21.85,127.26,127.15,22.5608]
[1719193814992,7.8613,127.21,127.16,7.8637]
[1719193815179,7.8605,127.22,127.17,7.8634]
[1719193815377,6.3783421,127.31,127.16,219.6599]
[1719193815588,21.85,127.38,127.16,219.6599]
[1719193815589,7.8598,127.23,127.18,7.8626]
[1719193815770,7.8598,127.23,127.19,45.17]
[1719193815967,38.01890774,127.32,127.19,45.17]
[1719193816186,7.8598,127.23,127.19,45.17]
[1719193817076,38.01890774,127.32,127.19,45.17]
[1719193817288,7.859,127.25,127.2,7.8614]
[1719193817589,7.859,127.25,127.21,45.0]
[1719193819701,7.8591,127.24,127.21,45.0]
[1719193820306,7.8574,127.27,127.22,8.2]
[1719193820610,7.8574,127.27,127.23,45.0]
[1719193820784,31.85,127.38,127.23,45.0]
[1719193820785,53.7,127.38,127.23,45.0]
[1719193821109,56.39216769,127.38,127.24,0.34]
[1719193821405,7.8567,127.28,127.24,45.34]
[1719193821697,7.8561,127.29,127.24,53.1989]
[1719193822697,7.8552,127.31,127.24,45.34]
[1719193822917,21.85,127.38,127.25,100.0]
[1719193823115,21.85,127.38,127.26,119.9844]
[1719193823280,7.8533,127.34,127.29,7.8556]
[1719193823483,7.8536,127.33,127.3,45.34]
[1719193823881,7.8536,127.33,127.3,0.34]
[1719193824180,7.8532,127.34,127.3,0.34]
[1719193824592,6.13137945,127.4,127.3,0.34]
[1719193824771,7.852,127.36,127.31,14.4046]
[1719193824976,7.8516,127.37,127.32,45.0]
[1719193825197,7.8521,127.36,127.32,45.0]
[1719193825903,7.8525,127.35,127.31,23.0357]
[1719193826300,75.172258,127.44,127.32,45.17]
[1719193826480,59.71475025,127.44,127.32,53.024]
[1719193826678,59.71475025,127.44,127.32,45.17]
[1719193826885,81.56475025,127.44,127.32,45.0]
[1719193827286,81.56475025,127.44,127.33,0.17]
[1719193827287,59.71475025,127.44,127.33,0.17]
[1719193827484,28.24249225,127.44,127.33,0.17]
[1719193827808,28.24249225,127.44,127.33,8.1935]
[1719193827979,28.24249225,127.44,127.34,45.0]
[1719193828178,28.24249225,127.44,127.33,0.34]
[1719193829217,0.17,127.43,127.32,45.0]
[1719193829426,21.85,127.4,127.31,23.0357]
[1719193829781,21.85,127.4,127.31,30.8903]
[1719193830202,0.17,127.39,127.26,26.1618]
[1719193830386,0.34,127.39,127.28,7.8566]
[1719193830592,7.8542,127.32,127.27,27.857]
[1719193830896,21.85,127.36,127.26,14.3748]
[1719193831112,7.8571,127.28,127.26,6.5172]
[1719193831284,7.8564,127.29,127.24,7.8591]
[1719193831478,7.8564,127.29,127.21,285.9502]
[1719193831479,21.85,127.32,127.23,7.8597]
[1719193831683,21.85,127.32,127.22,119.6496]
[1719193831986,21.85,127.32,127.26,7.8578]
[1719193831987,7.8551,127.31,127.26,7.8578]
[1719193832377,21.85,127.32,127.22,19.6496]
[1719193832613,7.8567,127.28,127.23,7.8593]
[1719193832910,7.857,127.28,127.23,7.8597]
[1719193833076,7.857,127.28,127.21,282.7061]
[1719193833281,7.857,127.28,127.23,7.8596]
[1719193833481,7.8574,127.27,127.22,7.8601]
[1719193833708,7.8568,127.28,127.23,7.8595]
[1719193833912,7.8568,127.28,127.24,7.859]
[1719193834185,21.85,127.32,127.24,7.859]
[1719193834386,7.8562,127.29,127.24,7.859]
[1719193835012,7.8562,127.29,127.25,45.0]
[1719193835200,6.23305769,127.35,127.26,0.17]
[1719193835404,7.8552,127.31,127.26,8.0275]
[1719193835613,7.8556,127.3,127.26,0.17]
[1719193836591,28.25353449,127.38,127.26,0.17]
[1719193836592,28.25353449,127.38,127.26,0.34]
[1719193836792,7.8541,127.33,127.27,7.857]
[1719193837236,28.25353449,127.38,127.28,45.34]
[1719193837237,21.85,127.38,127.28,45.34]
[1719193837403,7.8518,127.36,127.31,7.8545]
[1719193837605,7.8528,127.35,127.32,45.0]
[1719193837817,7.8528,127.35,127.3,8.0253]
[1719193838111,7.8528,127.35,127.31,45.17]
[1719193838317,7.852,127.36,127.31,45.17]
[1719193838731,7.8525,127.35,127.31,45.17]
[1719193839504,7.852,127.36,127.31,45.17]
[1719193839845,7.8524,127.35,127.31,45.17]
[1719193840201,7.8531,127.34,127.31,45.0]
[1719193840412,28.09152795,127.4,127.3,45.0]
[1719193840413,7.8545,127.32,127.3,45.0]
[1719193840646,7.8536,127.33,127.28,7.8565]
[1719193840806,7.8532,127.34,127.29,52.856]
[1719193841205,7.8539,127.33,127.29,45.0]
[1719193841427,7.8544,127.32,127.29,45.0]
[1719193841706,7.8555,127.3,127.26,6.0996]
[1719193842243,7.8538,127.33,127.28,7.8562]
[1719193842446,7.8543,127.32,127.26,6.0996]
[1719193842744,7.8554,127.3,127.26,6.0996]
[1719193843030,7.8554,127.3,127.25,23.2868]
[1719193843241,7.8555,127.3,127.25,15.4285]
[1719193844127,7.8551,127.31,127.25,23.2866]
[1719193844311,7.8567,127.28,127.25,15.4285]
[1719193844644,21.85,127.33,127.25,15.4285]
[1719193844848,7.8557,127.3,127.25,23.2865]
[1719193847041,7.8551,127.31,127.26,7.8579]
[1719193847241,7.8544,127.32,127.27,7.8572]
[1719193847430,7.8549,127.31,127.27,45.0]
[1719193848346,7.8545,127.32,127.27,52.8573]
[1719193848519,21.85,127.38,127.27,45.0]
[1719193848719,21.85,127.38,127.25,15.4285]
[1719193848720,7.8533,127.34,127.29,7.856]
[1719193849332,7.8536,127.33,127.28,8.1964]
[1719193849647,7.8536,127.33,127.29,45.0]
[1719193849948,7.8514,127.37,127.3,6.4931]
[1719193850147,31.85,127.44,127.3,6.4931]
[1719193850148,31.85,127.44,127.31,45.17]
[1719193850319,7.8515,127.37,127.32,8.0241]
[1719193850652,7.8507,127.38,127.33,52.8536]
[1719193851329,7.8508,127.38,127.33,52.8534]
[1719193851545,7.8508,127.38,127.33,45.0]
[1719193851752,28.00071046,127.44,127.34,0.17]
[1719193853547,28.00071046,127.44,127.33,45.0]
[1719193853741,45.17,127.43,127.33,45.0]
[1719193854551,0.17,127.42,127.33,45.0]
[1719193855437,21.85,127.4,127.33,45.0]
[1719193855736,0.17,127.39,127.32,15.9991]
[1719193855946,21.85,127.4,127.32,15.9991]
[1719193856120,21.85,127.4,127.33,45.0]
[1719193856456,7.852,127.36,127.33,45.0]
[1719193856746,7.8524,127.35,127.32,15.9991]
[1719193859227,7.8518,127.36,127.32,15.9991]
[1719193859430,7.8513,127.37,127.32,15.9991]
[1719193859843,7.8513,127.37,127.32,23.8532]
[1719193861749,7.85,127.39,127.34,7.8528]
[1719193861929,21.85,127.4,127.33,45.0]
[1719193862125,7.8506,127.38,127.33,52.8532]
[1719193862746,26.5501,127.39,127.34,7.8529]
[1719193863449,7.8506,127.38,127.33,52.8534]
[1719193864656,7.8506,127.38,127.34,7.8529]
[1719193864829,26.5501,127.39,127.34,7.8529]
[1719193866658,7.8501,127.39,127.34,7.8529]
[1719193866876,26.5501,127.39,127.35,45.0]
[1719193867564,7.8505,127.38,127.35,45.0]
[1719193868372,26.5501,127.39,127.35,45.0]
[1719193868538,18.7,127.39,127.35,45.0]
[1719193868739,7.8494,127.4,127.35,52.8523]
[1719193868972,7.85,127.39,127.35,45.0]
[1719193870037,7.8505,127.38,127.35,45.0]
[1719193871177,7.8505,127.38,127.34,45.0]
[1719193872576,7.8514,127.37,127.34,45.0]
[1719193872752,7.8527,127.35,127.32,15.9991]
[1719193873273,18.7,127.37,127.32,15.9991]
[1719193873474,18.7,127.37,127.33,7.8534]
[1719193874077,26.5513,127.37,127.34,45.0]
[1719193874378,26.5513,127.37,127.33,45.0]
[1719193877881,26.5513,127.37,127.33,52.8535]
[1719193878483,18.7,127.37,127.33,52.8535]
[1719193881984,18.7,127.37,127.34,7.8527]
[1719193882156,26.5496,127.4,127.35,7.8522]
[1719193882364,18.7,127.4,127.36,45.0]
[1719193882584,7.8502,127.39,127.36,45.0]
[1719193882890,7.8502,127.39,127.35,45.0]
[1719193884068,7.8505,127.38,127.35,45.0]
[1719193885263,7.85,127.39,127.35,45.0]
[1719193887881,18.7,127.4,127.35,45.0]
[1719193888096,18.7,127.4,127.32,15.9991]
[1719193888306,18.7,127.37,127.29,16.3302]
[1719193888586,7.8544,127.32,127.29,16.3302]
[1719193888760,7.8537,127.33,127.29,16.3302]
[1719193888961,18.7,127.34,127.26,6.234]
[1719193889298,18.7,127.34,127.26,14.0915]
[1719193889299,7.8549,127.31,127.26,14.0915]
[1719193889663,7.8544,127.32,127.27,7.8572]
[1719193889867,7.8551,127.31,127.26,6.234]
[1719193890083,7.8552,127.31,127.26,14.0919]
[1719193890586,7.8544,127.32,127.27,7.8572]
[1719193890892,7.855,127.31,127.26,14.0914]
[1719193891062,7.8542,127.32,127.27,7.857]
[1719193891264,7.8538,127.33,127.28,7.8562]
[1719193892092,18.7,127.34,127.29,52.856]
[1719193892093,26.5532,127.34,127.29,52.856]
[1719193892474,7.8524,127.35,127.3,7.8552]
[1719193892676,7.8524,127.35,127.31,45.0]
[1719193892877,7.8519,127.36,127.31,52.8547]
[1719193893499,7.8514,127.37,127.32,7.8542]
[1719193894715,18.7,127.44,127.33,6.4174]
[1719193894869,7.8513,127.37,127.33,51.4174]
[1719193897268,18.7,127.4,127.34,7.8528]
[1719193897469,18.7,127.4,127.33,59.2707]
[1719193898606,18.7,127.4,127.34,7.8529]
[1719193898775,25.01857612,127.44,127.35,45.0]
[1719193899096,18.7,127.41,127.35,45.0]
[1719193899288,18.7,127.41,127.35,7.8521]
[1719193899479,18.7,127.41,127.36,45.0]
[1719193900384,7.8499,127.39,127.36,45.0]
[1719193901296,7.8495,127.4,127.36,45.0]
[1719193901493,25.01857612,127.44,127.36,45.0]
[1719193901711,26.5482,127.42,127.37,7.8508]
[1719193901871,7.8509,127.38,127.36,45.0]
[1719193902072,7.8503,127.39,127.36,45.0]
[1719193902295,25.01857612,127.44,127.35,45.0]
[1719193902296,7.8505,127.38,127.35,45.0]
[1719193902478,18.7,127.4,127.35,45.0]
[1719193902672,7.8505,127.39,127.35,45.0]
[1719193902986,7.8505,127.39,127.34,52.8528]
[1719193903169,18.7,127.41,127.34,45.0]
[1719193904706,7.8496,127.4,127.35,7.8523]
[1719193905009,7.8492,127.4,127.36,52.8511]
[1719193905305,18.7,127.41,127.34,45.0]
[1719193905896,18.7,127.41,127.33,6.4174]
[1719193906102,7.8521,127.36,127.33,6.4174]
[1719193906278,7.8525,127.35,127.33,6.4174]
[1719193906480,7.8519,127.36,127.33,6.4174]
[1719193907770,18.7,127.38,127.33,6.4174]
[1719193907771,7.8512,127.37,127.33,6.4174]
[1719193908906,7.8517,127.36,127.33,6.4174]
[1719193909709,7.8514,127.37,127.33,6.4174]
[1719193911126,26.5508,127.38,127.34,45.0]
[1719193911614,18.7,127.38,127.34,45.0]
[1719193911994,18.7,127.38,127.33,6.4174]
[1719193912514,25.01857612,127.44,127.33,6.4174]
[1719193912688,18.7,127.4,127.34,52.8526]
[1719193912890,18.7,127.4,127.34,45.0]
[1719193913409,18.7,127.4,127.33,6.4174]
[1719193913609,18.7,127.4,127.33,14.2709]
[1719193913811,18.7,127.4,127.33,6.4174]
[1719193914221,18.7,127.4,127.33,14.2708]
[1719193915403,7.8508,127.38,127.33,14.2708]
[1719193915584,7.8508,127.38,127.34,7.8529]
[1719193915787,7.8512,127.37,127.33,6.4174]
[1719193916512,7.8512,127.37,127.33,14.2709]
[1719193917291,7.8512,127.37,127.33,7.8535]
[1719193918089,7.8512,127.37,127.32,7.8539]
[1719193918289,7.8512,127.37,127.33,45.0]
[1719193918728,6.23,127.34,127.33,45.0]
[1719193919314,6.23,127.34,127.33,52.8536]
[1719193920204,32.7707,127.38,127.34,7.8529]
[1719193920408,32.7707,127.38,127.33,45.0]
[1719193920409,6.23,127.35,127.33,45.0]
[1719193920602,6.23,127.34,127.32,45.0]
[1719193920805,6.23,127.33,127.32,45.0]
[1719193921121,6.23,127.33,127.32,52.8542]
[1719193921698,6.23,127.34,127.33,7.8533]
[1719193922221,0.8188803,127.45,127.35,7.8518]
[1719193922529,6.23,127.37,127.35,7.8519]
[1719193922898,6.23,127.36,127.34,7.8526]
[1719193923798,6.23,127.35,127.33,7.8533]
[1719193923996,6.23,127.35,127.34,45.0]
[1719193924806,6.23,127.35,127.34,52.8529]
[1719193925327,6.23,127.36,127.34,52.8529]
[1719193927707,7.8502,127.39,127.35,7.8523]
[1719193927909,6.23,127.36,127.35,7.8523]
[1719193928211,6.23,127.36,127.35,45.0]
[1719193929414,7.8502,127.39,127.35,45.0]
[1719193929632,6.23,127.36,127.35,45.0]
[1719193931130,6.23,127.36,127.34,45.0]
[1719193931438,6.23,127.35,127.34,45.0]
[1719193931643,6.23,127.35,127.31,15.1384]
[1719193931823,6.23,127.38,127.31,15.1384]
[1719193931824,6.23,127.33,127.31,15.1384]
[1719193932229,6.23,127.33,127.31,22.9931]
[1719193932805,6.23,127.32,127.29,15.1182]
[1719193933138,24.92,127.32,127.27,6.2943]
[1719193933509,24.92,127.32,127.27,14.1515]
[1719193933705,24.92,127.32,127.28,7.8566]
[1719193934005,0.17,127.37,127.28,7.8566]
[1719193934211,6.23,127.3,127.28,7.8566]
[1719193934722,0.17,127.37,127.28,7.8563]
[1719193934915,6.23,127.3,127.27,6.2943]
[1719193935112,7.8536,127.33,127.27,6.2943]
[1719193935113,6.23,127.31,127.28,7.8564]
[1719193935313,6.23,127.3,127.27,6.2943]
[1719193935534,6.23,127.29,127.25,22.9763]
[1719193935733,6.23,127.29,127.26,7.8578]
[1719193936221,6.23,127.29,127.27,7.8572]
[1719193936429,6.23,127.3,127.27,7.8572]
[1719193936736,7.8543,127.32,127.27,7.8572]